bitfinex/quotes_BTCUSD_20250525
["timestamp","ask_amount","ask_price","bid_price","bid_amount"]
[1748199688520,1.45989976,107370.0,107360.0,0.00701055]
[1748199689123,1.4259852,107370.0,107360.0,0.00701055]
[1748199690762,1.4099852,107370.0,107360.0,0.00701055]
[1748199691517,0.6305745,107370.0,107360.0,0.00701055]
[1748199691726,0.62164076,107370.0,107360.0,0.00701055]
[1748199697940,0.31972076,107370.0,107360.0,0.00701055]
[1748199698149,0.62164076,107370.0,107360.0,0.02201055]
[1748199699736,0.62164076,107370.0,107360.0,0.03811055]
[1748199700143,0.62164076,107370.0,107360.0,0.02201055]
[1748199706629,0.62164076,107370.0,107360.0,0.04995255]
[1748199710510,0.62164076,107370.0,107360.0,0.82936325]
[1748199719365,0.62164076,107370.0,107360.0,0.04995255]
[1748199719538,0.62164076,107370.0,107360.0,0.82936325]
[1748199720159,0.6212682,107370.0,107360.0,0.82936325]
[1748199721364,0.6213482,107370.0,107360.0,0.82936325]
[1748199721537,0.3193482,107370.0,107360.0,0.82936325]
[1748199721999,0.6213482,107370.0,107360.0,0.82936325]
[1748199722189,0.3193482,107370.0,107360.0,0.82936325]
[1748199722407,0.6213482,107370.0,107360.0,0.82936325]
[1748199722941,0.6213482,107370.0,107360.0,0.81436325]
[1748199723177,0.3193482,107370.0,107360.0,0.81436325]
[1748199723394,0.6213482,107370.0,107360.0,0.81436325]
[1748199723567,0.3193482,107370.0,107360.0,0.81436325]
[1748199723814,0.6213482,107370.0,107360.0,0.81436325]
[1748199724231,0.3193482,107370.0,107360.0,0.84576325]
[1748199724449,0.6213482,107370.0,107360.0,0.84576325]
[1748199726084,0.6213482,107370.0,107360.0,0.06635255]
[1748199726292,0.6213482,107370.0,107360.0,0.84576325]
[1748199728950,0.3193482,107370.0,107360.0,0.84576325]
[1748199729162,0.59980735,107370.0,107360.0,0.84576325]
[1748199729416,0.2360975,107370.0,107360.0,2.17009137]
[1748199729621,0.27860277,107370.0,107360.0,2.30969735]
[1748199729844,0.43168277,107370.0,107360.0,2.30038307]
[1748199730046,0.42236962,107370.0,107360.0,2.30969752]
[1748199730853,0.43691047,107370.0,107360.0,2.30969752]
[1748199731265,0.42759706,107370.0,107360.0,2.30969752]
[1748199732412,0.36320612,107370.0,107360.0,2.30969752]
[1748199732644,0.36320612,107370.0,107360.0,2.11409395]
[1748199736462,0.36320612,107370.0,107360.0,1.33468325]
[1748199739918,0.36320612,107370.0,107360.0,1.52097237]
[1748199740131,0.36320612,107370.0,107360.0,2.31901171]
[1748199741740,0.36320612,107370.0,107360.0,2.32832616]
[1748199741945,0.36320612,107370.0,107360.0,2.31901188]
[1748199742150,0.36320612,107370.0,107360.0,2.30969752]
[1748199742394,0.36340612,107370.0,107360.0,2.3190118]
[1748199742598,0.36340612,107370.0,107360.0,2.30969752]
[1748199745094,0.36340612,107370.0,107360.0,0.75087612]
[1748199745307,0.36340612,107370.0,107360.0,2.30969752]
[1748199745717,0.36340612,107370.0,107360.0,1.53028682]
[1748199746710,0.21012612,107370.0,107360.0,1.53028682]
[1748199746915,0.21012612,107370.0,107360.0,1.53960118]
[1748199747150,0.21012612,107370.0,107360.0,1.54891537]
[1748199747345,0.21012612,107370.0,107360.0,2.32832607]
[1748199747552,0.21012612,107370.0,107360.0,2.31901188]
[1748199748411,0.21012612,107370.0,107360.0,2.32832616]
[1748199748958,0.21012612,107370.0,107360.0,2.31901188]
[1748199750237,0.21012612,107370.0,107360.0,1.53960118]
[1748199752651,0.21012612,107370.0,107360.0,2.31901188]
[1748199753240,0.2194397,107370.0,107360.0,2.33764009]
[1748199753977,0.22875294,107370.0,107360.0,2.33764009]
[1748199754707,0.22875294,107370.0,107360.0,2.34695402]
[1748199755404,0.00931298,107370.0,107360.0,2.34695402]
[1748199755636,0.0372526,107370.0,107360.0,2.43649897]
[1748199756787,0.23283795,107370.0,107360.0,2.43649897]
[1748199757222,0.23283795,107370.0,107360.0,2.42714513]
[1748199757446,0.22352497,107370.0,107360.0,1.4895405]
[1748199757654,0.22352497,107370.0,107360.0,1.64773443]
[1748199758179,0.22352497,107370.0,107360.0,2.42714513]
[1748199759510,0.02793962,107370.0,107360.0,2.42714513]
[1748199759761,0.03725312,107370.0,107360.0,2.42714513]
[1748199759959,0.02793962,107370.0,107360.0,2.43645897]
[1748199761077,0.02793953,107370.0,107360.0,2.43645897]
[1748199761591,0.02793945,107370.0,107360.0,2.43645897]
[1748199761776,0.03725286,107370.0,107360.0,2.43645897]
[1748199762124,0.02793945,107370.0,107360.0,2.43645897]
[1748199762332,0.03725286,107370.0,107360.0,2.43645897]
[1748199763314,0.02793945,107370.0,107360.0,2.43645897]
[1748199763504,0.03725286,107370.0,107360.0,2.43645897]
[1748199764024,0.02793945,107370.0,107360.0,2.43645897]
[1748199764520,0.01862621,107370.0,107360.0,2.43645897]
[1748199764727,0.03725242,107370.0,107360.0,2.43645897]
[1748199765664,0.03725233,107370.0,107360.0,2.43645897]
[1748199767179,0.02793901,107370.0,107360.0,2.43645897]
[1748199767376,0.03725225,107370.0,107360.0,2.43645897]
[1748199769614,0.02793901,107370.0,107360.0,2.43645897]
[1748199769818,0.03725225,107370.0,107360.0,2.43645897]
[1748199770024,0.04656566,107370.0,107360.0,2.43645897]
[1748199772772,0.23283813,107370.0,107360.0,2.43645897]
[1748199773185,0.04656636,107370.0,107360.0,2.43645897]
[1748199773785,0.23283813,107370.0,107360.0,2.43645897]
[1748199774500,0.04656636,107370.0,107360.0,2.43645897]
[1748199777980,0.04656636,107370.0,107360.0,0.87763757]
[1748199778184,0.04656636,107370.0,107360.0,1.65704827]
[1748199778368,0.04656636,107370.0,107360.0,2.43645897]
[1748199779624,0.23283813,107370.0,107360.0,2.43645897]
[1748199779917,0.23283813,107370.0,107360.0,2.42714513]
[1748199780120,0.23283865,107370.0,107360.0,2.42714513]
[1748199780333,0.23283865,107370.0,107360.0,2.27826513]
[1748199780543,0.2235255,107370.0,107360.0,2.42714513]
[1748199785855,0.2235255,107370.0,107360.0,2.4178312]
[1748199786007,0.21421226,107370.0,107360.0,2.4178312]
[1748199788505,0.21421226,107370.0,107360.0,1.6384205]
[1748199789143,0.21421226,107370.0,107360.0,2.4178312]
[1748199790627,0.21421226,107370.0,107360.0,1.6384205]
[1748199791316,0.21421226,107370.0,107360.0,1.62910648]
[1748199792140,0.20489885,107370.0,107360.0,0.70081578]
[1748199792352,0.20489885,107370.0,107360.0,1.62910657]
[1748199792568,0.20489885,107370.0,107360.0,1.59770657]
[1748199793005,0.20489885,107370.0,107360.0,1.61290657]
[1748199793391,0.20489885,107370.0,107360.0,1.62222076]
[1748199794376,0.19558535,107370.0,107360.0,1.61290657]
[1748199794591,0.19558535,107370.0,107360.0,1.62222076]
[1748199795090,0.19558535,107370.0,107360.0,1.63153486]
[1748199795297,0.19558535,107370.0,107360.0,1.64084888]
[1748199796336,0.20489867,107370.0,107360.0,1.64084836]
[1748199797243,0.20489867,107370.0,107360.0,1.63153452]
[1748199802065,0.20489867,107370.0,107360.0,1.64084845]
[1748199802272,0.20489867,107370.0,107360.0,1.65704845]
[1748199802658,0.20489867,107370.0,107360.0,2.43645915]
[1748199804779,0.02793979,107370.0,107360.0,2.43645871]
[1748199804937,0.03725329,107370.0,107360.0,2.43645871]
[1748199806307,0.22352506,107370.0,107360.0,2.43645871]
[1748199808263,0.22352506,107370.0,107360.0,0.86832347]
[1748199808500,0.22352506,107370.0,107360.0,2.41094487]
[1748199809026,0.22352506,107370.0,107360.0,1.63153417]
[1748199809849,0.02793979,107370.0,107360.0,1.63153417]
[1748199810053,0.02793979,107370.0,107360.0,1.65594801]
[1748199810255,0.02793979,107370.0,107360.0,2.43535871]
[1748199810871,0.01862638,107370.0,107360.0,2.43535871]
[1748199811074,0.02793979,107370.0,107360.0,2.43535871]
[1748199811291,0.01862586,107370.0,107360.0,2.43535871]
[1748199811566,0.67286009,107380.0,107370.0,0.54489851]
[1748199811785,0.67286009,107380.0,107370.0,2.10371991]
[1748199812208,0.67286009,107380.0,107370.0,2.13165291]
[1748199812643,0.67386009,107380.0,107370.0,2.14096606]
[1748199814279,0.67286009,107380.0,107370.0,2.14096606]
[1748199814434,0.67286009,107380.0,107370.0,2.15127912]
[1748199814945,0.18660567,107380.0,107370.0,2.15127912]
[1748199815157,0.18660567,107380.0,107370.0,2.1605921]
[1748199815544,0.38217281,107380.0,107370.0,2.15127912]
[1748199818038,0.22873281,107380.0,107370.0,2.15127912]
[1748199824083,0.00931202,107380.0,107370.0,2.15127912]
[1748199824316,0.02793684,107380.0,107370.0,2.1757921]
[1748199826611,0.03724947,107380.0,107370.0,2.1757921]
[1748199828943,0.03724947,107380.0,107370.0,2.1605921]
[1748199830089,0.03724947,107380.0,107370.0,2.1760921]
[1748199831586,0.02793684,107380.0,107370.0,2.1760921]
[1748199834858,0.02793676,107380.0,107370.0,2.1760921]
[1748199835363,0.0186243,107380.0,107370.0,2.1760921]
[1748199835649,0.02793684,107380.0,107370.0,2.1760921]
[1748199838607,0.02793684,107380.0,107370.0,2.1605921]
[1748199838803,0.03724947,107380.0,107370.0,2.3094721]
[1748199839372,0.22350389,107380.0,107370.0,2.3094721]
[1748199845209,0.22350389,107380.0,107370.0,2.1605921]
[1748199845410,0.22350389,107380.0,107370.0,2.30015912]
[1748199852808,0.22350389,107380.0,107370.0,2.3094721]
[1748199853504,0.03724947,107380.0,107370.0,2.3094721]
[1748199853628,0.02793676,107380.0,107370.0,2.3094721]
[1748199854187,0.0372493,107380.0,107370.0,2.3094721]
[1748199858837,0.0186243,107380.0,107370.0,2.3094721]
[1748199859021,0.02793684,107380.0,107370.0,2.3094721]
[1748199868492,0.02793676,107380.0,107370.0,2.3247721]
[1748199869117,0.0372493,107380.0,107370.0,2.3247721]
[1748199875431,0.0372493,107380.0,107370.0,2.3094721]
[1748199878284,0.02793676,107380.0,107370.0,2.3094721]
[1748199878503,0.0372493,107380.0,107370.0,2.3094721]
[1748199886158,0.01862422,107380.0,107370.0,2.3094721]
[1748199886285,0.03724913,107380.0,107370.0,2.3094721]
[1748199893992,0.02793659,107380.0,107370.0,2.3094721]
[1748199894193,0.03724913,107380.0,107370.0,2.3094721]
[1748199897071,0.02793659,107380.0,107370.0,2.3094721]
[1748199897311,0.03724913,107380.0,107370.0,2.3094721]
[1748199897703,0.03724913,107380.0,107370.0,2.3256721]
[1748199898928,0.01862422,107380.0,107370.0,2.3256721]
[1748199899233,0.02793668,107380.0,107370.0,2.3256721]
[1748199900576,0.03724922,107380.0,107370.0,2.3094721]
[1748199902470,0.02793668,107380.0,107370.0,2.3094721]
[1748199904185,0.03724922,107380.0,107370.0,2.1605921]
[1748199904402,0.23281627,107380.0,107370.0,2.3094721]
[1748199904641,0.24901627,107380.0,107370.0,2.3094721]
[1748199904861,0.24901627,107380.0,107370.0,2.1605921]
[1748199905078,0.25202044,107380.0,107370.0,1.1483437]
[1748199905287,0.55202044,107380.0,107370.0,0.368933]
[1748199905905,0.55202044,107380.0,107370.0,1.1483437]
[1748199923263,0.70502044,107380.0,107370.0,1.1483437]
[1748199939959,0.68862044,107380.0,107370.0,1.1483437]
[1748199943247,0.67242044,107380.0,107370.0,1.1483437]
[1748199943475,0.67242044,107380.0,107370.0,1.9277544]
[1748199945990,0.67242044,107380.0,107370.0,0.368933]
[1748199946195,0.67242044,107380.0,107370.0,1.1483437]
[1748199955458,0.67242044,107380.0,107370.0,0.368933]
[1748199955603,0.67242044,107380.0,107370.0,1.1483437]
[1748199965507,0.67242044,107380.0,107370.0,1.1643437]
[1748199965724,0.67242044,107380.0,107370.0,1.1797437]
[1748199966462,0.67242044,107380.0,107370.0,1.1643437]
[1748199971845,0.51942044,107380.0,107370.0,1.1803437]
[1748199972050,0.67234044,107380.0,107370.0,1.1803437]
[1748199972471,0.67234044,107380.0,107370.0,1.1643437]
[1748199983686,0.67234044,107380.0,107370.0,2.13002617]
[1748199983894,0.17677287,107380.0,107370.0,2.17426589]
[1748199984114,0.0186243,107380.0,107370.0,2.17426589]
[1748199984325,0.02793676,107380.0,107370.0,2.17426589]
[1748199984529,0.36709149,107390.0,107380.0,0.58619135]
[1748199984734,0.36709201,107390.0,107380.0,1.49585766]
[1748199984955,0.38163286,107390.0,107380.0,1.49585766]
[1748199985161,0.38163286,107390.0,107380.0,1.52378666]
[1748199985467,0.38163286,107390.0,107380.0,1.53309912]
[1748199985692,0.38263286,107390.0,107380.0,1.53309912]
[1748199986978,0.01962274,107390.0,107380.0,1.5517236]
[1748199987184,0.02893407,107390.0,107380.0,1.64126916]
[1748199987743,0.0196224,107390.0,107380.0,1.64126916]
[1748199988114,0.0186224,107390.0,107380.0,1.65503355]
[1748199989167,0.01862231,107390.0,107380.0,1.65503355]
[1748199990035,0.02793373,107390.0,107380.0,1.65503355]
[1748199990615,0.04655691,107390.0,107380.0,1.65503355]
[1748199994172,0.23279467,107390.0,107380.0,1.65503355]
[1748199994396,0.0465576,107390.0,107380.0,1.65503355]
[1748199994599,0.23279528,107390.0,107380.0,1.62709661]
[1748199994807,0.22348386,107390.0,107380.0,1.63640898]
[1748199995412,0.0279345,107390.0,107380.0,1.63640898]
[1748199995620,0.0279345,107390.0,107380.0,1.65503329]
[1748199996330,0.21417157,107390.0,107380.0,1.65503329]
[1748199996537,0.22348342,107390.0,107380.0,1.65503329]
[1748199998052,0.0279345,107390.0,107380.0,1.65503329]
[1748199999466,0.03724635,107390.0,107380.0,1.64572126]
[1748199999946,0.22348342,107390.0,107380.0,1.64572126]
[1748200004149,0.0279345,107390.0,107380.0,1.65503337]
[1748200004325,0.21417157,107390.0,107380.0,1.64572126]
[1748200004688,0.0279345,107390.0,107380.0,1.65503346]
[1748200005566,0.22348342,107390.0,107380.0,1.65503346]
[1748200006674,0.0279345,107390.0,107380.0,1.66434557]
[1748200007227,0.01862274,107390.0,107380.0,1.66434557]
[1748200007436,0.02793442,107390.0,107380.0,1.66434557]
[1748200007763,0.21417149,107390.0,107380.0,1.66434557]
[1748200007982,0.00931124,107390.0,107380.0,1.66434557]
[1748200008195,0.02793434,107390.0,107380.0,1.66434557]
[1748200008468,0.19053071,107400.0,107390.0,0.23655965]
[1748200008469,0.01862153,107400.0,107390.0,0.23655965]
[1748200008672,0.03724211,107400.0,107390.0,1.89423811]
[1748200009366,0.03724211,107400.0,107390.0,1.92216211]
[1748200009713,0.03824211,107400.0,107390.0,1.92216211]
[1748200010440,0.03724211,107400.0,107390.0,1.92216211]
[1748200010958,0.03724211,107400.0,107390.0,1.92616211]
[1748200011175,0.03724211,107400.0,107390.0,1.93555977]
[1748200012026,0.02793113,107400.0,107390.0,1.93555977]
[1748200012244,0.03724194,107400.0,107390.0,1.93555977]
[1748200013482,0.02793113,107400.0,107390.0,1.93555977]
[1748200013700,0.04655266,107400.0,107390.0,1.93555977]
[1748200019523,0.23277317,107400.0,107390.0,0.36742721]
[1748200019730,0.23277317,107400.0,107390.0,1.91905994]
[1748200020086,0.04655336,107400.0,107390.0,1.91905994]
[1748200021120,0.23277309,107400.0,107390.0,1.91905994]
[1748200022150,0.23277309,107400.0,107390.0,1.92837118]
[1748200022296,0.23277309,107400.0,107390.0,1.91317118]
[1748200022496,0.23277369,107400.0,107390.0,1.90385994]
[1748200023903,0.22346314,107400.0,107390.0,1.90385994]
[1748200024495,0.22346314,107400.0,107390.0,1.89454861]
[1748200025180,0.20484161,107400.0,107390.0,1.68968862]
[1748200025414,0.21083071,107400.0,107390.0,0.96957236]
[1748200025645,0.22703071,107400.0,107390.0,0.96957236]
[1748200029897,0.22703071,107400.0,107390.0,0.9601747]
[1748200031279,0.22703071,107400.0,107390.0,0.8113347]
[1748200031481,0.22703071,107400.0,107390.0,0.9601747]
[1748200032522,0.22703071,107400.0,107390.0,0.8113347]
[1748200032701,0.22703071,107400.0,107390.0,0.9601747]
[1748200032862,0.22703071,107400.0,107390.0,0.8113347]
[1748200033065,0.21083071,107400.0,107390.0,0.9601747]
[1748200033728,0.21083071,107400.0,107390.0,0.8113347]
[1748200033929,0.21083071,107400.0,107390.0,0.9601747]
[1748200034217,0.21083071,107400.0,107390.0,0.8113347]
[1748200034417,0.21083071,107400.0,107390.0,0.9601747]
[1748200034826,0.21083071,107400.0,107390.0,0.8113347]
[1748200035034,0.21083071,107400.0,107390.0,0.9601747]
[1748200035533,0.21083071,107400.0,107390.0,0.8113347]
[1748200035828,0.21083071,107400.0,107390.0,0.9601747]
[1748200036605,0.22743071,107400.0,107390.0,0.9601747]
[1748200037363,0.24197156,107400.0,107390.0,0.031924]
[1748200037573,0.24197156,107400.0,107390.0,1.1513347]
[1748200047648,0.21007156,107400.0,107390.0,1.1513347]
[1748200050296,0.22537156,107400.0,107390.0,1.1513347]
[1748200050830,0.22537156,107400.0,107390.0,0.371924]
[1748200051086,0.24097156,107400.0,107390.0,1.1513347]
[1748200056604,0.22537156,107400.0,107390.0,1.1513347]
[1748200057983,0.21007156,107400.0,107390.0,1.1513347]
[1748200058163,0.21007156,107400.0,107390.0,1.33757177]
[1748200058380,0.21007156,107400.0,107390.0,1.1513347]
[1748200058604,0.21007156,107400.0,107390.0,1.1663347]
[1748200059024,0.21007156,107400.0,107390.0,1.1814347]
[1748200066987,0.21007156,107400.0,107390.0,1.36767177]
[1748200067394,0.21007156,107400.0,107390.0,1.1814347]
[1748200071412,0.21007156,107400.0,107390.0,1.1663347]
[1748200080814,0.21007156,107400.0,107390.0,1.3001747]
[1748200081014,0.22527156,107400.0,107390.0,1.3001747]
[1748200085466,0.21007156,107400.0,107390.0,1.3001747]
[1748200093214,0.22637156,107400.0,107390.0,1.3001747]
[1748200099050,0.22637156,107400.0,107390.0,0.520764]
[1748200099258,0.24147156,107400.0,107390.0,1.3001747]
[1748200099476,0.24147156,107400.0,107390.0,1.1513347]
[1748200104593,0.22637156,107400.0,107390.0,1.1513347]
[1748200110134,0.21007156,107400.0,107390.0,1.1513347]
[1748200112129,0.21007156,107400.0,107390.0,1.3001747]
[1748200112575,0.51007156,107400.0,107390.0,1.3321747]
[1748200126388,0.51007156,107400.0,107390.0,1.3160747]
[1748200132571,0.51007156,107400.0,107390.0,1.1672347]
[1748200132780,0.51007156,107400.0,107390.0,1.3160747]
[1748200134394,0.51007156,107400.0,107390.0,1.3001747]
[1748200145858,0.51007156,107400.0,107390.0,1.1513347]
[1748200146069,0.51007156,107400.0,107390.0,1.3001747]
[1748200146301,0.52647156,107400.0,107390.0,1.3001747]
[1748200150072,0.51007156,107400.0,107390.0,1.3001747]
[1748200155870,0.51007156,107400.0,107390.0,0.520764]
[1748200156073,0.51007156,107400.0,107390.0,1.3001747]
[1748200156279,0.52537156,107400.0,107390.0,1.3001747]
[1748200161304,0.51007156,107400.0,107390.0,1.3001747]
[1748200172004,0.51307156,107400.0,107390.0,1.3001747]
[1748200186232,0.51307156,107400.0,107390.0,1.3156747]
[1748200187699,0.51307156,107400.0,107390.0,1.3315747]
[1748200187960,0.51307156,107400.0,107390.0,1.52712362]
[1748200188725,0.51307156,107400.0,107390.0,1.34088655]
[1748200189092,0.51307156,107400.0,107390.0,1.52712362]
[1748200189720,0.51307156,107400.0,107390.0,1.34088655]
[1748200189911,0.51307156,107400.0,107390.0,1.3315747]
[1748200190057,0.51307156,107400.0,107390.0,1.51781177]
[1748200190295,0.51307156,107400.0,107390.0,1.52712362]
[1748200194825,0.51307156,107400.0,107390.0,1.51122362]
[1748200200604,0.50376058,107400.0,107390.0,0.371924]
[1748200200809,0.50376058,107400.0,107390.0,1.48641177]
[1748200201825,0.50376058,107400.0,107390.0,1.3001747]
[1748200205439,0.50376058,107400.0,107390.0,1.3156747]
[1748200205656,0.50376058,107400.0,107390.0,1.3001747]
[1748200206520,0.50361973,107400.0,107390.0,1.3001747]
[1748200209597,0.50361973,107400.0,107390.0,1.3155747]
[1748200210514,0.20361973,107400.0,107390.0,1.52702353]
[1748200210719,0.20361973,107400.0,107390.0,1.51771177]
[1748200211047,0.20361973,107400.0,107390.0,1.3314747]
[1748200211396,0.20361973,107400.0,107390.0,1.51771177]
[1748200211600,0.01231055,107400.0,107390.0,2.32505697]
[1748200211804,0.21715138,107400.0,107390.0,2.31574573]
[1748200211993,0.21715138,107400.0,107390.0,1.54564645]
[1748200212414,0.22646228,107400.0,107390.0,1.55495778]
[1748200212695,0.23577326,107400.0,107390.0,1.55495778]
[1748200213425,0.003,107400.0,107390.0,2.43322528]
[1748200213631,0.02162066,107400.0,107390.0,2.43322528]
[1748200213848,0.03093121,107400.0,107390.0,2.43322528]
[1748200214268,0.04024193,107400.0,107390.0,2.43322528]
[1748200214514,0.04024202,107400.0,107390.0,2.43322528]
[1748200221383,0.23577265,107400.0,107390.0,2.43322528]
[1748200221678,0.04955292,107400.0,107390.0,2.43322528]
[1748200223205,0.23577265,107400.0,107390.0,2.43322528]
[1748200223563,0.23577343,107400.0,107390.0,2.43322528]
[1748200223771,0.23577343,107400.0,107390.0,1.65381458]
[1748200223986,0.22646297,107400.0,107390.0,1.63519201]
[1748200224432,0.22646297,107400.0,107390.0,1.64450334]
[1748200236833,0.21715242,107400.0,107390.0,1.63519201]
[1748200239935,0.21715242,107400.0,107390.0,1.64450334]
[1748200242772,0.21715242,107400.0,107390.0,0.86509264]
[1748200242946,0.21715242,107400.0,107390.0,1.64450334]
[1748200243581,0.21715242,107400.0,107390.0,1.62588077]
[1748200243782,0.21715242,107400.0,107390.0,1.61929219]
[1748200251519,0.21715242,107400.0,107390.0,2.39870289]
[1748200252442,0.21715242,107400.0,107390.0,2.38939147]
[1748200252672,0.20784161,107400.0,107390.0,2.39870306]
[1748200252879,0.20784161,107400.0,107390.0,0.46146956]
[1748200253090,0.21981973,107400.0,107390.0,0.371924]
[1748200253307,0.23436058,107400.0,107390.0,0.371924]
[1748200253512,0.23436058,107400.0,107390.0,1.1513347]
[1748200253718,0.23436058,107400.0,107390.0,0.371924]
[1748200253929,0.23436058,107400.0,107390.0,1.1513347]
[1748200254361,0.23136058,107400.0,107390.0,0.371924]
[1748200254579,1.10031684,107400.0,107390.0,0.004]
[1748200254842,1.12710002,107400.0,107390.0,0.004]
[1748200255051,1.10031684,107400.0,107390.0,0.004]
[1748200255258,1.10946906,107400.0,107390.0,0.004]
[1748200255466,0.33005836,107400.0,107390.0,0.004]
[1748200256323,0.32090614,107400.0,107390.0,0.004]
[1748200256549,0.92290614,107400.0,107390.0,0.004]
[1748200257861,0.93235103,107400.0,107390.0,0.004]
[1748200258289,1.7497982,107400.0,107390.0,0.004]
[1748200259131,0.9703875,107400.0,107390.0,0.004]
[1748200259290,0.93235103,107400.0,107390.0,0.004]
[1748200261136,0.92366614,107400.0,107390.0,0.004]
[1748200261558,0.62090614,107400.0,107390.0,0.004]
[1748200261833,0.92366614,107400.0,107390.0,0.004]
[1748200262268,0.20487924,107380.0,107370.0,1.06100481]
[1748200262493,0.25002009,107380.0,107370.0,0.367933]
[1748200263521,0.25002009,107380.0,107370.0,0.371933]
[1748200264118,0.25002009,107380.0,107370.0,0.375933]
[1748200266497,0.25002009,107380.0,107370.0,1.06900481]
[1748200266712,0.25002009,107380.0,107370.0,0.375933]
[1748200273255,0.33956565,107380.0,107370.0,0.375933]
[1748200273451,0.78844565,107380.0,107370.0,0.008]
[1748200276045,0.62406565,107380.0,107370.0,0.70107181]
[1748200276249,0.76292565,107380.0,107370.0,0.72900881]
[1748200276688,0.51942009,107380.0,107370.0,0.72900881]
[1748200276899,0.67338009,107380.0,107370.0,0.72900881]
[1748200277030,0.68938009,107380.0,107370.0,0.72900881]
[1748200277580,0.70508009,107380.0,107370.0,0.035937]
[1748200284025,0.70508009,107380.0,107370.0,0.81585565]
[1748200288024,0.68938009,107380.0,107370.0,0.81585565]
[1748200288210,0.83826009,107380.0,107370.0,0.81585565]
[1748200307131,0.82226009,107380.0,107370.0,0.81585565]
[1748200311607,0.82226009,107380.0,107370.0,0.035937]
[1748200311837,0.83746009,107380.0,107370.0,0.81585565]
[1748200322014,0.82226009,107380.0,107370.0,0.81585565]
[1748200331099,0.67338009,107380.0,107370.0,0.81585565]
[1748200331303,0.82226009,107380.0,107370.0,0.81585565]
[1748200331481,0.82226009,107380.0,107370.0,0.84745565]
[1748200333167,0.51942009,107380.0,107370.0,0.84745565]
[1748200333379,0.37274009,107380.0,107370.0,1.6273743]
[1748200333596,0.67274009,107380.0,107370.0,1.9673743]
[1748200339095,0.67274009,107380.0,107370.0,2.1162543]
[1748200342080,0.51942009,107380.0,107370.0,2.1162543]
[1748200342491,0.51942009,107380.0,107370.0,1.33633565]
[1748200342896,0.51942009,107380.0,107370.0,2.1162543]
[1748200343327,0.51942009,107380.0,107370.0,1.33633565]
[1748200348424,0.51942009,107380.0,107370.0,1.15585565]
[1748200351703,0.67270009,107380.0,107370.0,1.15585565]
[1748200356104,0.67270009,107380.0,107370.0,1.30473565]
[1748200358123,0.67270009,107380.0,107370.0,0.524817]
[1748200358283,0.67270009,107380.0,107370.0,1.30473565]
[1748200379037,0.67270009,107380.0,107370.0,1.15585565]
[1748200379172,0.67270009,107380.0,107370.0,1.30473565]
[1748200380115,0.67247112,107380.0,107370.0,1.30473565]
[1748200380352,0.67247112,107380.0,107370.0,1.15585565]
[1748200380732,0.67247112,107380.0,107370.0,1.30473565]
[1748200380943,0.97247112,107380.0,107370.0,1.15585565]
[1748200381142,0.98767112,107380.0,107370.0,1.15585565]
[1748200382886,0.98767112,107380.0,107370.0,1.30473565]
[1748200384974,0.97247112,107380.0,107370.0,1.15585565]
[1748200385923,0.98767112,107380.0,107370.0,1.15585565]
[1748200387074,0.98767112,107380.0,107370.0,1.30473565]
[1748200387382,0.97247112,107380.0,107370.0,1.30473565]
[1748200387799,0.98767112,107380.0,107370.0,1.30473565]
[1748200390416,0.98767112,107380.0,107370.0,0.524817]
[1748200390627,0.98767112,107380.0,107370.0,1.30473565]
[1748200392159,0.97247112,107380.0,107370.0,1.30473565]
[1748200392378,1.00297112,107380.0,107370.0,0.375937]
[1748200392782,1.15185112,107380.0,107370.0,0.375937]
[1748200393870,1.13655112,107380.0,107370.0,0.375937]
[1748200397758,1.13655112,107380.0,107370.0,1.15585565]
[1748200415642,1.12135112,107380.0,107370.0,1.15585565]
[1748200428213,1.13675112,107380.0,107370.0,1.15585565]
[1748200429625,1.13675112,107380.0,107370.0,0.375937]
[1748200431396,1.13675112,107380.0,107370.0,0.035937]
[1748200432738,1.12135112,107380.0,107370.0,0.035937]
[1748200441764,1.12135112,107380.0,107370.0,0.375937]
[1748200442728,1.12135112,107380.0,107370.0,1.15585565]
[1748200447980,1.12135112,107380.0,107370.0,1.15397565]
[1748200449484,1.12135112,107380.0,107370.0,0.374057]
[1748200449697,1.12135112,107380.0,107370.0,1.15397565]
[1748200450298,1.12135112,107380.0,107370.0,0.374057]
[1748200450508,1.12135112,107380.0,107370.0,1.15397565]
[1748200453695,1.12135112,107380.0,107370.0,1.12603865]
[1748200459097,1.12135112,107380.0,107370.0,1.15397365]
[1748200460892,0.37247112,107380.0,107370.0,1.18567365]
[1748200461131,0.37247112,107380.0,107370.0,1.9655923]
[1748200461132,0.67247112,107380.0,107370.0,1.9655923]
[1748200461592,0.67247112,107380.0,107370.0,1.18567365]
[1748200470478,0.67247112,107380.0,107370.0,1.18387365]
[1748200500314,0.51919112,107380.0,107370.0,1.18387365]
[1748200500495,0.67227112,107380.0,107370.0,1.18387365]
[1748200504513,0.20465027,107380.0,107370.0,1.9637923]
[1748200509695,0.20465027,107380.0,107370.0,2.15006407]
[1748200509905,0.19533799,107380.0,107370.0,1.9637923]
[1748200514204,0.19533799,107380.0,107370.0,2.15006407]
[1748200514509,0.19533799,107380.0,107370.0,1.9637923]
[1748200529548,0.19533799,107380.0,107370.0,2.15006407]
[1748200529760,0.19533799,107380.0,107370.0,1.9637923]
[1748200536880,0.19533799,107380.0,107370.0,2.15937765]
[1748200537089,0.19533799,107380.0,107370.0,1.9637923]
[1748200539056,0.19533799,107380.0,107370.0,2.15006407]
[1748200539256,0.19533799,107380.0,107370.0,2.15937757]
[1748200540760,0.00908357,107380.0,107370.0,2.24892313]
[1748200541008,0.51731973,107400.0,107380.0,0.03512457]
[1748200541219,0.03083365,107390.0,107380.0,0.30606397]
[1748200541425,0.04945666,107390.0,107380.0,0.45261623]
[1748200541635,0.04014498,107390.0,107380.0,0.45261623]
[1748200541861,0.04014498,107390.0,107380.0,0.4921425]
[1748200542071,0.04945657,107390.0,107380.0,0.48283056]
[1748200542278,0.22638309,107390.0,107380.0,0.51075708]
[1748200542490,0.22638309,107390.0,107380.0,1.29067573]
[1748200542899,0.21707176,107390.0,107380.0,1.29998845]
[1748200543316,0.21707176,107390.0,107380.0,1.29067608]
[1748200543525,0.21707176,107390.0,107380.0,1.29267608]
[1748200544369,0.21707176,107390.0,107380.0,1.30198845]
[1748200544495,0.20776034,107390.0,107380.0,1.29267608]
[1748200545265,0.20776034,107390.0,107380.0,1.14379625]
[1748200545266,0.19844875,107390.0,107380.0,1.14379625]
[1748200545523,0.19844875,107390.0,107380.0,1.30198879]
[1748200546233,0.19844875,107390.0,107380.0,1.31130125]
[1748200546438,0.19844875,107390.0,107380.0,1.31230125]
[1748200548017,0.19844875,107390.0,107380.0,1.32161362]
[1748200548226,0.21707193,107390.0,107380.0,1.32161275]
[1748200548438,0.02152249,107390.0,107380.0,2.44153131]
[1748200548665,0.03083399,107390.0,107380.0,2.44153131]
[1748200548838,0.04014567,107390.0,107380.0,2.44153131]
[1748200549294,0.04014567,107390.0,107380.0,1.66161266]
[1748200549710,0.03083399,107390.0,107380.0,1.66161266]
[1748200549925,0.04014559,107390.0,107380.0,1.66161266]
[1748200550134,0.00931116,107390.0,107380.0,1.66161266]